bitfinex/quotes_SOLUSD_20241115
["timestamp","ask_amount","ask_price","bid_price","bid_amount"]
[1731672165820,14.49144692,213.58,213.5,14.49144692]
[1731672166305,4.6823,213.57,213.5,14.49144692]
[1731672166503,19.17374692,213.57,213.49,14.49144692]
[1731672166699,14.49144692,213.55,213.48,14.49144692]
[1731672166899,14.49144692,213.55,213.44,20.0]
[1731672166900,14.49144692,213.52,213.45,19.17624692]
[1731672167109,14.49144692,213.53,213.46,14.49144692]
[1731672167922,14.49144692,213.54,213.47,14.49144692]
[1731672168138,14.49144692,213.55,213.48,14.49144692]
[1731672168431,4.6829,213.54,213.48,14.49144692]
[1731672169205,19.17344692,213.58,213.5,14.49144692]
[1731672169409,19.17344692,213.58,213.51,14.49144692]
[1731672169697,19.17344692,213.58,213.5,14.49144692]
[1731672170115,14.49144692,213.57,213.49,14.49144692]
[1731672170527,19.17384692,213.57,213.49,19.17534692]
[1731672170728,4.6824,213.57,213.51,14.49144692]
[1731672171413,4.6824,213.57,213.52,14.49144692]
[1731672171736,14.49144692,213.59,213.52,14.49144692]
[1731672171737,19.17344692,213.59,213.52,14.49144692]
[1731672171901,14.49144692,213.58,213.51,14.49144692]
[1731672172704,0.09367462,213.63,213.52,14.49144692]
[1731672172931,14.49144692,213.6,213.53,14.49144692]
[1731672173114,14.49144692,213.59,213.52,14.49144692]
[1731672173310,14.49144692,213.58,213.51,19.17494692]
[1731672174002,14.49144692,213.59,213.52,14.49144692]
[1731672174526,4.6812,213.62,213.54,14.49144692]
[1731672174708,19.17264692,213.62,213.55,14.49144692]
[1731672175507,14.49144692,213.61,213.54,14.49144692]
[1731672176325,14.49144692,213.66,213.59,14.49144692]
[1731672176508,14.49144692,213.67,213.6,14.49144692]
[1731672177018,14.49144692,213.65,213.58,14.49144692]
[1731672177336,19.17204692,213.65,213.58,14.49144692]
[1731672177508,19.17204692,213.65,213.58,19.17334692]
[1731672178212,19.17204692,213.65,213.58,14.49144692]
[1731672178508,19.17204692,213.65,213.58,19.17334692]
[1731672179650,14.49144692,213.66,213.58,19.17334692]
[1731672179929,14.49144692,213.65,213.58,19.17334692]
[1731672180505,14.49144692,213.66,213.58,19.17334692]
[1731672180905,14.49144692,213.61,213.54,4.6827]
[1731672181111,14.49144692,213.59,213.49,6.4434]
[1731672181321,14.49144692,213.58,213.51,14.49144692]
[1731672181520,14.49144692,213.57,213.5,14.49144692]
[1731672181733,14.49144692,213.56,213.49,25.61864692]
[1731672182044,14.49144692,213.55,213.49,4.6838]
[1731672182328,14.49144692,213.56,213.49,19.17524692]
[1731672182731,14.49144692,213.55,213.49,24.6838]
[1731672182926,14.49144692,213.55,213.48,11.7103]
[1731672183131,14.49144692,213.54,213.48,11.7103]
[1731672184125,14.49144692,213.52,213.47,15.3919]
[1731672184649,22.7381,213.6,213.44,21.06504692]
[1731672184650,14.49144692,213.51,213.44,6.5736]
[1731672184822,14.49144692,213.51,213.44,21.06504692]
[1731672185021,19.17494692,213.52,213.45,14.49144692]
[1731672185618,14.49144692,213.51,213.44,25.75004692]
[1731672186914,19.17504692,213.51,213.44,25.75004692]
[1731672187120,19.17504692,213.51,213.43,30.88964692]
[1731672187121,14.49144692,213.5,213.43,30.88964692]
[1731672187614,19.17504692,213.51,213.44,14.49144692]
[1731672187815,14.49144692,213.48,213.41,14.49144692]
[1731672188116,4.6836,213.51,213.37,15.1772]
[1731672188117,14.49144692,213.46,213.39,30.89304692]
[1731672188516,14.49144692,213.46,213.39,26.20684692]
[1731672188936,4.6849,213.45,213.39,26.20684692]
[1731672189142,19.17604692,213.47,213.39,30.89304692]
[1731672190038,19.17604692,213.47,213.4,19.17734692]
[1731672190915,19.17604692,213.47,213.4,14.49144692]
[1731672191121,14.49144692,213.45,213.39,11.7154]
[1731672192229,14.49144692,213.43,213.37,19.8637]
[1731672193243,14.49144692,213.42,213.35,19.17844692]
[1731672193543,14.49144692,213.42,213.36,20.0]
[1731672194445,6.4264,213.54,213.42,0.09367462]
[1731672194631,14.49144692,213.57,213.5,14.49144692]
[1731672195218,14.49144692,213.56,213.49,14.49144692]
[1731672195440,14.49144692,213.58,213.5,14.49144692]
[1731672195942,14.49144692,213.57,213.5,14.49144692]
[1731672196445,14.49144692,213.55,213.47,30.88654692]
[1731672196741,15.5735,213.59,213.53,14.49144692]
[1731672196920,14.49144692,213.58,213.51,14.49144692]
[1731672197127,14.49144692,213.57,213.5,14.49144692]
[1731672197822,20.2554,213.59,213.49,4.6839]
[1731672197823,14.49144692,213.56,213.49,4.6839]
[1731672198243,14.49144692,213.58,213.51,14.49144692]
[1731672198743,14.49144692,213.58,213.5,14.49144692]
[1731672198953,6.4264,213.6,213.53,14.49144692]
[1731672199128,14.49144692,213.59,213.52,14.49144692]
[1731672199623,14.49144692,213.57,213.5,14.49144692]
[1731672199826,14.49144692,213.58,213.51,14.49144692]
[1731672200324,14.49144692,213.6,213.53,14.49144692]
[1731672200631,14.49144692,213.59,213.52,14.49144692]
[1731672201035,14.49144692,213.58,213.51,14.49144692]
[1731672201229,14.49144692,213.57,213.5,14.49144692]
[1731672201432,14.49144692,213.57,213.5,19.17514692]
[1731672201634,19.17364692,213.58,213.5,19.17514692]
[1731672202648,4.6822,213.58,213.52,14.49144692]
[1731672202842,14.49144692,213.59,213.52,14.49144692]
[1731672203041,16.4858,213.64,213.5,16.3933]
[1731672203042,14.49144692,213.61,213.53,14.49144692]
[1731672203340,19.17264692,213.62,213.55,14.49144692]
[1731672203541,14.49144692,213.63,213.56,14.49144692]
[1731672203743,21.1666,213.64,213.51,14.49144692]
[1731672203744,35.65804692,213.64,213.57,14.49144692]
[1731672204143,22.7038,213.7,213.53,0.09367462]
[1731672204342,8.9558504,213.74,213.53,0.09367462]
[1731672204343,4.6791,213.72,213.64,14.49144692]
[1731672204648,171.7558504,213.74,213.64,14.49144692]
[1731672204649,19.17074692,213.71,213.64,14.49144692]
[1731672204849,14.49144692,213.67,213.57,20.0]
[1731672205057,14.49144692,213.67,213.6,14.49144692]
[1731672205238,14.49144692,213.69,213.61,14.49144692]
[1731672205650,14.49144692,213.69,213.62,14.49144692]
[1731672205854,14.49144692,213.7,213.63,14.49144692]
[1731672206032,14.49144692,213.69,213.61,14.49144692]
[1731672206238,14.49144692,213.67,213.59,14.49144692]
[1731672206440,14.49144692,213.66,213.59,14.49144692]
[1731672206841,14.49144692,213.67,213.6,14.49144692]
[1731672207139,14.49144692,213.69,213.62,14.49144692]
[1731672207354,14.49144692,213.7,213.63,14.49144692]
[1731672207563,14.49144692,213.69,213.62,14.49144692]
[1731672208264,14.49144692,213.7,213.63,14.49144692]
[1731672208566,14.49144692,213.72,213.65,14.49144692]
[1731672208742,8.9558504,213.74,213.64,14.49144692]
[1731672208743,14.49144692,213.71,213.64,14.49144692]
[1731672208935,14.49144692,213.7,213.62,14.49144692]
[1731672209129,13.6345504,213.74,213.61,14.49144692]
[1731672209457,14.49144692,213.67,213.59,30.87784692]
[1731672209631,14.49144692,213.67,213.6,14.49144692]
[1731672209831,14.49144692,213.67,213.59,16.3864]
[1731672209832,14.49144692,213.68,213.61,14.49144692]
[1731672210032,14.49144692,213.69,213.61,14.49144692]
[1731672210252,19.17094692,213.7,213.62,14.49144692]
[1731672210444,14.49144692,213.7,213.62,14.49144692]
[1731672210643,19.17064692,213.71,213.64,14.49144692]
[1731672211152,19.17064692,213.71,213.63,14.49144692]
[1731672211153,14.49144692,213.7,213.63,14.49144692]
[1731672211444,14.49144692,213.69,213.62,14.49144692]
[1731672211647,14.49144692,213.71,213.63,14.49144692]
[1731672212362,14.49144692,213.7,213.63,14.49144692]
[1731672212560,14.49144692,213.71,213.64,14.49144692]
[1731672212952,14.49144692,213.7,213.62,30.87544692]
[1731672213275,14.49144692,213.69,213.62,16.384]
[1731672213964,14.49144692,213.67,213.62,16.384]
[1731672214140,14.49144692,213.68,213.62,16.384]
[1731672214341,14.49144692,213.67,213.62,11.703]
[1731672214947,14.49144692,213.66,213.59,4.6817]
[1731672215148,14.49144692,213.65,213.59,4.6817]
[1731672215741,14.49144692,213.62,213.58,11.7051]
[1731672215943,7.33300209,213.69,213.55,18.726451]
[1731672215944,14.49144692,213.6,213.55,18.726451]
[1731672216141,23.776884,213.67,213.55,18.726451]
[1731672216142,14.49144692,213.58,213.55,18.726451]
[1731672217064,14.49144692,213.59,213.55,18.726451]
[1731672217240,14.49144692,213.58,213.55,18.726451]
[1731672217441,14.49144692,213.56,213.55,18.726451]
[1731672219142,14.49144692,213.56,213.5,11.7095]
[1731672219441,14.49144692,213.53,213.47,4.6843]
[1731672219639,14.49144692,213.52,213.46,11.7117]
[1731672219835,4.6826,213.56,213.46,11.7117]
[1731672219836,14.49144692,213.5,213.46,11.7117]
[1731672220048,4.6826,213.56,213.46,11.7117]
[1731672220049,14.49144692,213.51,213.46,11.7117]
[1731672220258,14.49144692,213.51,213.46,16.3964]
[1731672220653,14.49144692,213.52,213.46,16.3964]
[1731672221559,14.49144692,213.51,213.46,16.3964]
[1731672222069,4.682,213.58,213.5,14.49144692]
[1731672222070,14.49144692,213.57,213.5,14.49144692]
[1731672222450,14.49144692,213.58,213.51,14.49144692]
[1731672222969,14.49144692,213.56,213.49,14.49144692]
[1731672223341,14.49144692,213.54,213.48,4.6841]
[1731672223840,14.49144692,213.54,213.47,26.20264692]
[1731672223841,14.49144692,213.53,213.47,11.7112]
[1731672224065,14.49144692,213.51,213.47,11.7112]
[1731672224969,14.49144692,213.52,213.47,11.7112]
[1731672225170,14.49144692,213.52,213.47,16.3956]
[1731672225358,14.49144692,213.54,213.47,30.88704692]
[1731672225550,14.49144692,213.54,213.48,14.49144692]
[1731672226057,14.49144692,213.55,213.48,14.49144692]
[1731672226255,14.49144692,213.54,213.48,19.17554692]
[1731672226468,14.49144692,213.54,213.48,4.6841]
[1731672227168,14.49144692,213.54,213.47,11.7112]
[1731672227353,14.49144692,213.53,213.47,11.7112]
[1731672228169,14.49144692,213.53,213.47,16.3956]
[1731672228476,14.49144692,213.52,213.47,16.3956]
[1731672228678,14.49144692,213.53,213.47,16.3956]
[1731672229059,14.49144692,213.52,213.47,11.7112]
[1731672229549,14.49144692,213.54,213.47,26.20264692]
[1731672229877,19.17444692,213.54,213.47,26.20264692]
[1731672230064,14.49144692,213.53,213.47,11.7112]
[1731672230589,19.17444692,213.54,213.47,26.20264692]
[1731672230877,162.8,213.6,213.52,14.49144692]
[1731672231183,162.8,213.6,213.47,39.818]
[1731672231184,14.49144692,213.6,213.53,14.49144692]
[1731672231478,14.49144692,213.59,213.52,14.49144692]
[1731672231883,14.49144692,213.6,213.53,14.49144692]
[1731672232093,4.6818,213.6,213.54,14.49144692]
[1731672232379,14.49144692,213.61,213.53,34.62264692]
[1731672232579,14.49144692,213.6,213.53,27.1561]
[1731672232880,14.49144692,213.6,213.53,41.64754692]
[1731672233051,14.49144692,213.61,213.54,14.49144692]
[1731672233256,19.17264692,213.62,213.55,14.49144692]
[1731672233476,19.17264692,213.62,213.53,27.1561]
[1731672233477,14.49144692,213.61,213.54,14.49144692]
[1731672233976,14.49144692,213.6,213.54,4.6828]
[1731672234359,14.49144692,213.6,213.53,46.33064692]
[1731672234556,14.49144692,213.6,213.53,31.8392]
[1731672234764,14.49144692,213.59,213.53,31.8392]
[1731672235469,19.17324692,213.59,213.53,31.8392]
[1731672236190,14.49144692,213.6,213.53,29.93964692]
[1731672236370,14.49144692,213.6,213.53,15.4482]
[1731672236555,14.49144692,213.6,213.53,20.1313]
[1731672237055,14.49144692,213.6,213.53,34.62274692]
[1731672237251,14.49144692,213.61,213.53,34.62274692]
[1731672237476,19.17284692,213.61,213.53,46.33064692]
[1731672237681,4.6814,213.61,213.55,14.49144692]
[1731672237893,4.6814,213.61,213.54,14.49144692]
[1731672238478,19.17284692,213.61,213.53,46.33064692]
[1731672238683,14.49144692,213.59,213.53,15.4482]
[1731672239888,14.49144692,213.58,213.53,15.4482]
[1731672240185,14.49144692,213.6,213.53,34.62274692]
[1731672240865,14.49144692,213.58,213.53,15.4482]
[1731672241071,4.6809,213.63,213.46,23.4225]
[1731672241072,14.49144692,213.55,213.46,15.9418]
[1731672241383,14.49144692,213.47,213.46,15.9418]
[1731672241574,14.49144692,213.47,213.43,11.7129]
[1731672242278,14.49144692,213.47,213.43,16.3982]
[1731672242480,14.49144692,213.48,213.43,16.3982]
[1731672242663,14.49144692,213.47,213.43,11.7129]
[1731672242864,14.49144692,213.46,213.41,21.0223]
[1731672243380,14.49144692,213.47,213.41,21.0223]
[1731672244186,14.49144692,213.48,213.41,47.22824692]
[1731672244361,16.3903,213.54,213.41,47.22824692]
[1731672244362,14.49144692,213.47,213.41,32.7368]
[1731672244888,14.49144692,213.44,213.41,28.0512]
[1731672245063,14.49144692,213.51,213.41,28.0512]
[1731672245064,14.49144692,213.45,213.41,28.0512]
[1731672245380,14.49144692,213.43,213.38,4.6863]
[1731672245587,14.49144692,213.42,213.37,11.7166]
[1731672245767,14.49144692,213.41,213.37,11.7166]
[1731672246473,14.49144692,213.43,213.37,16.4032]
[1731672246885,12.02368621,213.5,213.41,4.6858]
[1731672247088,14.49144692,213.48,213.41,16.4003]
[1731672247494,14.49144692,213.47,213.41,16.4003]
[1731672248171,14.49144692,213.48,213.41,14.49144692]
[1731672248564,14.49144692,213.47,213.4,14.49144692]
[1731672248763,14.49144692,213.45,213.37,30.89474692]
[1731672248965,14.49144692,213.44,213.37,30.89474692]
[1731672249180,14.49144692,213.43,213.37,16.4033]
[1731672249386,14.49144692,213.44,213.37,30.89474692]
[1731672249887,14.49144692,213.42,213.37,16.4033]
[1731672250079,14.49144692,213.45,213.38,14.49144692]
[1731672250765,14.49144692,213.43,213.37,16.4033]
[1731672250967,14.49144692,213.49,213.42,14.49144692]
[1731672251166,14.49144692,213.48,213.41,14.49144692]
[1731672251988,14.49144692,213.49,213.42,14.49144692]
[1731672252366,14.49144692,213.44,213.37,24.6866]
[1731672252578,14.49144692,213.42,213.36,28.1417]
[1731672252774,14.49144692,213.41,213.36,32.8286]
[1731672253064,14.49144692,213.39,213.32,30.44614692]
[1731672253279,14.49144692,213.39,213.34,4.6871]
[1731672253482,14.49144692,213.39,213.32,20.6423]
[1731672253680,169.4239,213.47,213.32,15.9547]
[1731672253681,14.49144692,213.37,213.32,15.9547]
[1731672254173,14.49144692,213.36,213.32,15.9547]
[1731672254367,19.17814692,213.37,213.32,15.9547]
[1731672254567,14.49144692,213.35,213.32,15.9547]
[1731672254768,14.49144692,213.35,213.31,11.7195]
[1731672254999,0.1,213.44,213.34,14.49144692]
[1731672255294,14.49144692,213.43,213.36,14.49144692]
[1731672255586,14.49144692,213.41,213.35,16.4836]
[1731672255799,14.49144692,213.4,213.35,16.4836]
[1731672255977,19.17744692,213.4,213.35,16.4836]
[1731672256287,19.17744692,213.4,213.31,11.7195]
[1731672256288,14.49144692,213.38,213.31,16.4073]
[1731672256487,14.49144692,213.36,213.31,11.7195]
[1731672257289,14.49144692,213.38,213.31,11.7195]
[1731672257882,14.49144692,213.38,213.31,26.21094692]
[1731672258076,19.17804692,213.38,213.31,11.7195]
[1731672258396,14.49144692,213.37,213.3,15.2425]
[1731672258778,14.49144692,213.36,213.3,15.2425]
[1731672259178,14.49144692,213.35,213.3,15.2425]
[1731672259482,38.26833092,213.34,213.26,14.49144692]
[1731672259715,14.49144692,213.34,213.27,14.49144692]
[1731672260387,19.17884692,213.34,213.27,14.49144692]
[1731672260696,14.49144692,213.33,213.26,4.689]
[1731672261883,19.17914692,213.33,213.26,4.689]
[1731672262274,14.49144692,213.32,213.26,4.689]
[1731672262474,19.17914692,213.33,213.26,19.18044692]
[1731672262971,4.6877,213.33,213.27,14.49144692]
[1731672263170,19.17914692,213.33,213.27,14.49144692]
[1731672263369,4.6877,213.33,213.27,14.49144692]
[1731672263676,14.49144692,213.36,213.29,14.49144692]
[1731672263876,14.49144692,213.4,213.33,14.49144692]
[1731672264105,19.17724692,213.41,213.33,14.49144692]
[1731672264779,14.49144692,213.4,213.33,14.49144692]
[1731672265093,14.49144692,213.39,213.32,14.49144692]
[1731672265270,14.49144692,213.4,213.32,14.49144692]
[1731672266102,14.49144692,213.39,213.32,14.49144692]
[1731672266308,19.17774692,213.39,213.32,19.17914692]
[1731672266609,14.49144692,213.37,213.3,4.688]
[1731672267019,14.49144692,213.38,213.31,14.49144692]
[1731672267192,14.49144692,213.37,213.3,14.49144692]
[1731672267790,14.49144692,213.35,213.27,4.6887]
[1731672268104,4.6863,213.39,213.28,14.49144692]
[1731672268105,14.49144692,213.36,213.28,14.49144692]
[1731672268611,4.6871,213.35,213.28,14.49144692]
[1731672268787,4.6871,213.35,213.29,14.49144692]
[1731672269305,19.17854692,213.35,213.28,19.18004692]
[1731672269512,19.17854692,213.35,213.27,26.21364692]
[1731672269803,14.49144692,213.33,213.27,11.7222]
[1731672270610,14.49144692,213.33,213.27,16.411]
[1731672270983,4.6874,213.34,213.27,30.90244692]
[1731672272109,4.6874,213.34,213.28,14.49144692]
[1731672272306,19.17884692,213.34,213.27,26.21364692]
[1731672272689,14.49144692,213.33,213.27,11.7222]
[1731672273313,19.17884692,213.34,213.27,26.21364692]
[1731672273485,19.17884692,213.34,213.27,30.90244692]
[1731672273811,4.6874,213.34,213.28,14.49144692]
[1731672274713,14.49144692,213.36,213.29,14.49144692]
[1731672274891,4.6871,213.36,213.3,14.49144692]
[1731672275089,14.49144692,213.37,213.3,14.49144692]
[1731672275279,4.6863,213.39,213.33,14.49144692]
[1731672275480,4.6863,213.39,213.34,14.49144692]
[1731672275790,4.6863,213.39,213.27,11.7222]
[1731672275791,4.6863,213.39,213.33,14.49144692]
[1731672276615,19.17754692,213.4,213.33,14.49144692]
[1731672276910,19.17754692,213.4,213.33,19.17894692]
[1731672277232,4.6861,213.4,213.34,14.49144692]
[1731672277789,19.17754692,213.4,213.33,14.49144692]
[1731672279193,19.17754692,213.4,213.33,19.17884692]
[1731672280196,4.6855,213.42,213.36,14.49144692]
[1731672280396,25.27934692,213.44,213.37,14.49144692]
[1731672280622,4.6853,213.44,213.38,14.49144692]
[1731672280818,14.49144692,213.39,213.28,16.4355]
[1731672280985,14.49144692,213.34,213.28,21.124]
[1731672282202,36.30424692,213.4,213.3,19.17944692]
[1731672282203,14.49144692,213.37,213.3,19.17944692]
[1731672282514,14.49144692,213.36,213.3,16.4085]
[1731672283209,19.17814692,213.37,213.3,30.89994692]
[1731672283393,14.49144692,213.36,213.3,16.4085]
[1731672283803,14.49144692,213.37,213.3,30.89994692]
[1731672284115,14.49144692,213.34,213.28,16.4355]
[1731672284284,14.49144692,213.33,213.28,16.4355]
[1731672284894,23.776884,213.38,213.28,16.4355]
[1731672284895,14.49144692,213.35,213.28,30.92694692]
[1731672285291,14.49144692,213.37,213.3,14.49144692]
[1731672285490,14.49144692,213.37,213.3,19.17964692]
[1731672285697,14.49144692,213.36,213.3,4.6882]
[1731672286015,14.49144692,213.37,213.3,19.17964692]
[1731672286713,14.49144692,213.36,213.3,4.6882]
[1731672286919,14.49144692,213.35,213.3,4.6882]
[1731672287294,14.49144692,213.36,213.3,4.6882]
[1731672288420,14.49144692,213.38,213.31,14.49144692]
[1731672288616,14.49144692,213.37,213.3,19.17964692]
[1731672288831,14.49144692,213.36,213.3,4.6882]
[1731672289200,14.49144692,213.38,213.31,14.49144692]
[1731672289522,19.17794692,213.38,213.31,14.49144692]
[1731672289707,14.49144692,213.37,213.3,30.90014692]
[1731672290233,162.8,213.44,213.31,0.09367462]
[1731672290520,14.49144692,213.44,213.37,14.49144692]
[1731672290899,19.17674692,213.43,213.36,19.17824692]
[1731672291100,19.17674692,213.43,213.35,14.49144692]
[1731672291511,14.49144692,213.41,213.34,16.4049]
[1731672292107,4.686,213.4,213.34,16.4049]
[1731672293422,4.686,213.4,213.35,14.49144692]
[1731672293805,14.49144692,213.43,213.35,14.49144692]
[1731672294734,14.49144692,213.4,213.33,14.49144692]
[1731672294929,19.17754692,213.4,213.33,19.17894692]
[1731672296103,19.17754692,213.4,213.32,14.49144692]
[1731672296529,19.17754692,213.4,213.31,11.72]
[1731672296530,14.49144692,213.37,213.31,11.72]
[1731672296829,14.49144692,213.36,213.31,11.72]
[1731672297130,14.49144692,213.37,213.31,16.408]
[1731672297316,14.49144692,213.37,213.31,11.72]
[1731672298427,19.17824692,213.37,213.31,11.72]
[1731672299008,14.49144692,213.36,213.31,11.72]
[1731672299622,4.6868,213.37,213.3,14.49144692]
[1731672299623,19.17824692,213.37,213.3,14.49144692]
[1731672300005,19.17824692,213.37,213.29,4.6884]
[1731672300212,14.49144692,213.36,213.29,19.17984692]
[1731672300515,19.17824692,213.37,213.3,14.49144692]
[1731672300724,19.17824692,213.37,213.3,19.17954692]
[1731672301927,14.49144692,213.36,213.29,4.6884]
[1731672302125,14.49144692,213.36,213.29,19.17984692]
[1731672302438,14.49144692,213.36,213.29,14.49144692]
[1731672302623,14.49144692,213.34,213.28,16.4355]
[1731672302826,14.49144692,213.33,213.28,16.4355]
[1731672303236,14.49144692,213.34,213.28,21.1241]
[1731672303534,14.49144692,213.34,213.28,16.4355]
[1731672304356,14.49144692,213.32,213.28,16.4355]
[1731672304513,14.49144692,213.32,213.26,11.7223]
[1731672305636,19.17924692,213.32,213.26,11.7223]
[1731672306530,19.17924692,213.32,213.23,15.7478]
[1731672306531,14.49144692,213.29,213.23,15.7478]
[1731672306739,14.49144692,213.28,213.23,15.7478]
[1731672308616,14.49144692,213.25,213.21,0.09367462]
[1731672309546,4.6884,213.29,213.21,0.09367462]
[1731672310321,14.49144692,213.25,213.21,0.09367462]
[1731672310530,4.6884,213.29,213.23,14.49144692]
[1731672311225,19.17984692,213.29,213.23,14.49144692]
[1731672311960,14.49144692,213.35,213.28,14.49144692]
[1731672312119,22.0204,213.4,213.31,14.49144692]
[1731672312120,19.17804692,213.38,213.31,14.49144692]
[1731672312323,19.17804692,213.38,213.32,14.49144692]
[1731672312324,4.6866,213.38,213.32,14.49144692]
[1731672312827,26.45821019,213.4,213.33,14.49144692]
[1731672313232,14.49144692,213.38,213.28,20.0]
[1731672313427,14.49144692,213.38,213.31,14.49144692]
[1731672313752,4.6866,213.37,213.33,14.49144692]
[1731672314054,4.6866,213.37,213.32,14.49144692]
[1731672314551,14.49144692,213.39,213.33,14.49144692]
[1731672314552,4.6864,213.39,213.33,14.49144692]
[1731672314786,14.49144692,213.41,213.34,14.49144692]
[1731672314923,21.78586758,213.44,213.36,14.49144692]
[1731672315251,14.49144692,213.42,213.35,14.49144692]
[1731672315426,7.29442066,213.44,213.38,14.49144692]
[1731672315427,4.6853,213.44,213.38,14.49144692]
[1731672315957,21.80239814,213.47,213.4,14.49144692]
[1731672316134,14.49144692,213.48,213.41,14.49144692]
[1731672316329,4.6845,213.47,213.41,14.49144692]
[1731672316543,4.6845,213.47,213.42,14.49144692]
[1731672316750,14.49144692,213.49,213.42,14.49144692]
[1731672316961,23.4553282,213.53,213.46,14.49144692]
[1731672317450,23.4553282,213.53,213.37,32.1228]
[1731672317451,14.49144692,213.51,213.44,14.49144692]
[1731672317953,19.17514692,213.51,213.44,14.49144692]
[1731672318749,4.6837,213.51,213.44,14.49144692]
[1731672319154,13.64718128,213.53,213.46,14.49144692]
[1731672319337,13.64718128,213.53,213.47,14.49144692]
[1731672320028,19.17384692,213.57,213.5,14.49144692]
[1731672320453,14.49144692,213.56,213.49,14.49144692]
[1731672320964,14.49144692,213.54,213.47,14.49144692]
[1731672321460,14.49144692,213.55,213.47,14.49144692]
[1731672322557,14.49144692,213.56,213.49,14.49144692]
[1731672322857,14.49144692,213.57,213.49,14.49144692]
[1731672323043,14.49144692,213.57,213.48,4.6842]
[1731672323248,4.6819,213.59,213.52,14.49144692]
[1731672323749,4.6819,213.59,213.53,14.49144692]
[1731672324151,4.6819,213.59,213.52,14.49144692]
[1731672324460,14.49144692,213.54,213.48,16.3948]
[1731672324659,14.49144692,213.55,213.48,16.3948]
[1731672324838,14.49144692,213.57,213.5,14.49144692]
[1731672325032,14.49144692,213.59,213.52,14.49144692]
[1731672325458,14.49144692,213.58,213.51,14.49144692]
[1731672327562,14.49144692,213.58,213.51,19.17484692]
[1731672329439,4.6817,213.6,213.51,19.17484692]
[1731672329440,14.49144692,213.59,213.51,19.17484692]
[1731672329637,14.49144692,213.6,213.53,14.49144692]
[1731672329846,0.158478,213.62,213.58,14.49144692]
[1731672330859,0.158478,213.62,213.6,14.49144692]
[1731672332172,0.158478,213.62,213.6,19.17304692]
[1731672333034,0.158478,213.62,213.61,14.49144692]
[1731672335663,0.158478,213.62,213.6,30.87714692]
[1731672335968,0.158478,213.62,213.6,11.7041]
[1731672336461,0.158478,213.62,213.58,4.682]
[1731672336756,0.158478,213.62,213.57,16.6206]
[1731672336962,14.49144692,213.61,213.55,11.7065]
[1731672337167,14.49144692,213.58,213.52,21.2935]
[1731672337344,14.49144692,213.57,213.52,16.6103]
[1731672337666,14.49144692,213.56,213.52,16.6103]
[1731672337961,19.33112492,213.62,213.55,14.49144692]
[1731672338272,0.158478,213.62,213.56,14.49144692]
[1731672338474,0.158478,213.62,213.59,14.49144692]
[1731672338647,0.158478,213.62,213.58,14.49144692]
[1731672340054,0.158478,213.62,213.58,19.17344692]
[1731672342066,0.158478,213.62,213.59,14.49144692]
[1731672342266,0.158478,213.62,213.61,38.26833092]
[1731672342761,0.158478,213.62,213.61,58.26833092]
[1731672342971,0.158478,213.62,213.61,73.40223092]
[1731672344071,0.158478,213.62,213.61,78.08363092]
[1731672345261,0.158478,213.62,213.61,54.30674692]
[1731672346463,162.8,213.79,213.61,54.30674692]
[1731672346464,19.16944692,213.77,213.62,43.776884]
[1731672346668,14.49144692,213.78,213.71,14.49144692]
[1731672346969,19.16904692,213.79,213.72,14.49144692]
[1731672347351,4.6777,213.78,213.72,14.49144692]
[1731672347752,19.16874692,213.8,213.73,14.49144692]
[1731672347958,4.6771,213.81,213.74,14.49144692]
[1731672348159,4.6767,213.83,213.74,14.49144692]
[1731672348366,4.6767,213.83,213.74,19.16994692]
[1731672349146,0.4610048,213.84,213.74,39.26362154]
[1731672349856,14.95245172,213.84,213.74,39.16994692]
[1731672350155,19.16814692,213.83,213.74,39.16994692]
[1731672350367,14.49144692,213.8,213.73,26.18834692]
[1731672350552,19.16834692,213.82,213.74,14.49144692]
[1731672350752,14.49144692,213.83,213.74,14.49144692]
[1731672350958,19.62895172,213.84,213.74,14.49144692]
[1731672351177,0.4610048,213.84,213.74,34.58512154]
[1731672351667,0.4610048,213.84,213.74,58.36200554]
[1731672352071,0.4610048,213.84,213.74,34.58512154]
[1731672352257,19.62885172,213.84,213.74,34.58512154]
[1731672352786,14.49144692,213.83,213.74,34.58512154]
[1731672353080,5.1374048,213.84,213.74,34.58512154]
[1731672353566,14.95245172,213.84,213.74,34.58512154]
[1731672353775,14.95245172,213.84,213.74,34.49144692]
[1731672354068,0.4610048,213.84,213.74,58.36200554]
[1731672354953,8.77965385,213.94,213.74,64.90780554]
[1731672355152,0.1,214.02,213.74,64.90780554]
[1731672355153,0.4610048,214.26,214.04,16.4751]
[1731672355350,14.95245172,214.26,214.14,0.1]
[1731672355556,14.49144692,214.24,214.15,14.49144692]
[1731672355848,0.1,214.21,214.11,14.49144692]